[Event "Kuwait Championship Stage-I 2024"]
[Site "Qadsiya"]
[Date "2024.01.28"]
[Round "6.11"]
[White "Alruwaiyeh, Musa"]
[Black "Almohammad, Hamad"]
[Result "0-1"]
[ECO "B10"]
[WhiteElo "1505"]
[BlackElo "1296"]
[Annotator "NA RC"]
[PlyCount "80"]
[EventDate "2024.01.22"]
[EventType "swiss"]
[EventCountry "KUW"]
[SourceTitle "playchess.com"]
[Source "ChessBase"]
[SourceQuality "1"]
[TimeControl "5400+30"]

1. e4 {[%emt 0:00:11]} c6 {[%emt 0:00:05]} 2. d3 {[%emt 0:00:59]} d5 {[%emt 0:00:11]} 3. Nd2 {[%emt 0:00:13]} dxe4 {[%emt 0:00:38]} 4. dxe4 {[%emt 0:01:17]} e5 {[%emt 0:06:03]} 5. Ngf3 {[%emt 0:01:33]} Bg4 {[%emt 0:00:28]} 6. h3 {[%emt 0:01:43]} Bxf3 {[%emt 0:00:42]} 7. Qxf3 {[%emt 0:00:24]} Nf6 {[%emt 0:00:29]} 8. Bc4 {[%emt 0:07:01]} b5 {[%emt 0:03:31]} 9. Bb3 {[%emt 0:00:54]} a5 {[%emt 0:02:13]} 10. a4 {[%emt 0:01:29]} Bc5 {[%emt 0:01:47]} 11. O-O {[%emt 0:01:43]} O-O {[%emt 0:00:19]} 12. Rd1 {[%emt 0:04:13]} Qe7 {[%emt 0:01:00]} 13. Nf1 {[%emt 0:01:04]} Nbd7 {[%emt 0:04:52]} 14. Bg5 {[%emt 0:02:18]} h6 {[%emt 0:01:12]} 15. Bh4 {[%emt 0:00:54]} Rfd8 {[%emt 0:04:52]} 16. Ng3 {[%emt 0:04:22]} g6 {[%emt 0:07:12]} 17. Rxd7 {[%emt 0:06:19]} Rxd7 {[%emt 0:06:13]} 18. Bxf6 {[%emt 0:00:36]} Qe8 {[%emt 0:01:13]} 19. Qg4 {[%emt 0:01:44]} Kh7 {[%emt 0:01:43]} 20. Nf5 {[%emt 0:02:41]} Bf8 {[%emt 0:00:03]} 21. h4 {[%emt 0:03:04]} Rd2 {[%emt 0:04:43]} 22. Qf3 {[%emt 0:12:36]} Qd7 {[%emt 0:03:18]} 23. Ng3 {[%emt 0:04:35]} bxa4 {[%emt 0:05:50]} 24. Rxa4 {[%emt 0:00:22]} Bc5 {[%emt 0:00:20]} 25. Ne2 {[%emt 0:03:12]} Rd1+ {[%emt 0:02:37]} 26. Kh2 {[%emt 0:00:31]} Rf1 {[%emt 0:00:21]} 27. Bxe5 {[%emt 0:05:36]} Rxf2 {[%emt 0:00:27]} 28. Qc3 {[%emt 0:00:09]} Qg4 {[%emt 0:06:35]} 29. Bg3 {[%emt 0:02:36]} Bd6 {[%emt 0:13:10]} 30. e5 {[%emt 0:01:51]} Qxe2 {[%emt 0:00:33]} 31. exd6 {[%emt 0:02:06]} Rxg2+ {[%emt 0:00:34]} 32. Kh3 {[%emt 0:00:36]} Qf1 {[%emt 0:03:23]} 33. Rf4 {[%emt 0:13:55]} Rf2+ {[%emt 0:00:54]} 34. Kg4 {[%emt 0:00:16]} h5+ {[%emt 0:01:46]} 35. Kg5 {[%emt 0:00:41]} Qb5+ {[%emt 0:01:19]} 36. Kf6 {[%emt 0:00:30]} Rxf4+ {[%emt 0:00:54]} 37. Bxf4 {[%emt 0:01:11]} Qf5+ {[%emt 0:00:17]} 38. Ke7 {[%emt 0:00:18]} Ra7+ {[%emt 0:00:57]} 39. d7 {[%emt 0:01:49]} Qxd7+ {[%emt 0:00:16]} 40. Kf6 {[%emt 0:01:31]} Qf5# {[%emt 0:00:06]} 0-1

[Event "Kuwait Championship Stage-I 2024"]
[Site "Qadsiya"]
[Date "2024.01.28"]
[Round "6.12"]
[White "Eidi, Eisa"]
[Black "Al Subaie, Nasser"]
[Result "0-1"]
[ECO "A30"]
[WhiteElo "1306"]
[BlackElo "1457"]
[Annotator "NA RC"]
[PlyCount "70"]
[EventDate "2024.01.22"]
[EventType "swiss"]
[EventCountry "KUW"]
[SourceTitle "playchess.com"]
[Source "ChessBase"]
[SourceQuality "1"]
[TimeControl "5400+30"]

1. d4 Nf6 2. Nf3 {[%emt 0:00:32]} e6 {[%emt 1:31:30]} 3. c4 c5 {[%emt 0:00:00]} 4. g3 {[%emt 0:00:11]} b6 {[%emt 0:00:00]} 5. Bg2 {[%emt 0:01:31]} Bb7 {[%emt 0:00:00]} 6. Nc3 {[%emt 0:01:06]} cxd4 {[%emt 0:00:00]} 7. Qxd4 {[%emt 0:01:41]} Be7 {[%emt 0:00:00]} 8. O-O {[%emt 0:00:39]} O-O {[%emt 0:00:00]} 9. b3 {[%emt 0:04:59]} Nc6 {[%emt 0:00:00]} 10. Qd2 {[%emt 0:01:20]} Bb4 {[%emt 0:00:00]} 11. a3 {[%emt 0:01:03]} Ne4 {[%emt 0:00:00]} 12. Qc2 {[%emt 0:06:27]} Bxc3 {[%emt 0:00:00]} 13. Ra2 {[%emt 0:01:14]} d5 {[%emt 0:00:00]} 14. cxd5 {[%emt 0:00:56]} exd5 {[%emt 0:00:00]} 15. Rd1 {[%emt 0:00:39]} Bf6 {[%emt 0:00:00]} 16. Ne1 {[%emt 0:04:30]} Nc3 {[%emt 0:00:00]} 17. Rd2 {[%emt 0:01:53]} Nd4 {[%emt 0:00:00]} 18. Rxd4 {[%emt 0:03:03]} Bxd4 {[%emt 0:00:00]} 19. Bb2 {[%emt 0:00:46]} Rc8 {[%emt 0:00:00]} 20. Bxc3 {[%emt 0:02:38]} Bxc3 {[%emt 0:00:00]} 21. Nd3 {[%emt 0:00:29]} Ba6 {[%emt 0:00:00]} 22. Nf4 {[%emt 0:01:47]} Be5 {[%emt 0:00:00]} 23. Qf5 {[%emt 0:00:40]} Rc1+ {[%emt 0:00:00]} 24. Bf1 {[%emt 0:00:13]} Bxf4 {[%emt 0:00:00]} 25. Qxf4 {[%emt 0:00:37]} Qc8 {[%emt 0:00:00]} 26. Kg2 {[%emt 0:00:59]} Rc2 {[%emt 0:00:00]} 27. Rxc2 {[%emt 0:00:27]} Qxc2 {[%emt 0:00:00]} 28. Qd6 {[%emt 0:00:26]} Bxe2 {[%emt 0:00:00]} 29. Bxe2 {[%emt 0:00:11]} Qxe2 {[%emt 0:00:00]} 30. Qxd5 {[%emt 0:00:16]} Re8 {[%emt 0:00:00]} 31. Qd7 {[%emt 0:00:27]} Qe7 {[%emt 0:00:00]} 32. Qb5 {[%emt 0:00:26]} h6 {[%emt 0:00:00]} 33. h4 {[%emt 0:00:10]} Qe4+ {[%emt 0:00:00]} 34. Kg1 {[%emt 0:00:25]} Rd8 {[%emt 0:00:00]} 35. Qf1 {[%emt 0:00:33]} Qf3 {[%emt 0:00:00]} 0-1

[Event "Kuwait Championship Stage-I 2024"]
[Site "Qadsiya"]
[Date "2024.01.30"]
[Round "7.1"]
[White "Alhejab, Meshal"]
[Black "Hussain, Hashem"]
[Result "1/2-1/2"]
[ECO "B35"]
[WhiteElo "1787"]
[BlackElo "1642"]
[Annotator "NA RC"]
[PlyCount "66"]
[EventDate "2024.01.22"]
[EventType "swiss"]
[EventCountry "KUW"]
[SourceTitle "playchess.com"]
[Source "ChessBase"]
[SourceQuality "1"]
[TimeControl "5400+30"]

1. e4 {[%emt 0:01:12]} c5 {[%emt 0:00:07]} 2. Nf3 {[%emt 0:00:05]} g6 {[%emt 0:00:10]} 3. d4 {[%emt 0:00:19]} cxd4 {[%emt 0:00:09]} 4. Nxd4 {[%emt 0:00:06]} Nc6 {[%emt 0:00:24]} 5. Nc3 {[%emt 0:01:02]} Bg7 {[%emt 0:00:22]} 6. Be3 {[%emt 0:00:27]} Nf6 {[%emt 0:00:21]} 7. Bc4 {[%emt 0:03:55]} Qa5 {[%emt 0:01:47]} 8. Nb3 {[%emt 0:39:23]} Qb4 {[%emt 0:05:03]} 9. Nd2 {[%emt 0:10:02]} Qxb2 {[%emt 0:09:23]} 10. Nb5 {[%emt 0:04:25]} Qe5 {[%emt 0:22:02]} 11. f4 {[%emt 0:09:42]} Qb8 {[%emt 0:00:33]} 12. e5 {[%emt 0:13:59]} Nxe5 {[%emt 0:02:24]} 13. fxe5 {[%emt 0:00:14]} Qxe5 {[%emt 0:00:07]} 14. Kf2 {[%emt 0:03:18]} d5 {[%emt 0:09:55]} 15. Be2 {[%emt 0:03:59]} O-O {[%emt 0:07:40]} 16. h3 {[%emt 0:04:34]} a6 {[%emt 0:09:21]} 17. Nd4 {[%emt 0:00:37]} Qd6 {[%emt 0:03:50]} 18. c3 {[%emt 0:00:41]} e5 {[%emt 0:02:01]} 19. N4b3 {[%emt 0:00:11]} Nd7 {[%emt 0:01:50]} 20. Bf3 {[%emt 0:00:59]} Qf6 {[%emt 0:06:11]} 21. Kg1 {[%emt 0:00:09]} e4 {[%emt 0:00:28]} 22. Bd4 {[%emt 0:00:11]} Qg5 {[%emt 0:03:49]} 23. Be2 {[%emt 0:00:17]} Ne5 {[%emt 0:04:47]} 24. Nf1 {[%emt 0:00:37]} Be6 {[%emt 0:00:52]} 25. Qd2 {[%emt 0:00:57]} Qd8 {[%emt 0:01:08]} 26. Nc5 {[%emt 0:00:38]} b5 {[%emt 0:03:05]} 27. a4 {[%emt 0:00:38]} Nc4 {[%emt 0:01:01]} 28. Bxc4 {[%emt 0:00:33]} bxc4 {[%emt 0:00:06]} 29. Nxe6 {[%emt 0:00:39]} fxe6 {[%emt 0:00:12]} 30. Bxg7 {[%emt 0:00:13]} Kxg7 {[%emt 0:00:10]} 31. Ne3 {[%emt 0:00:22]} Kg8 {[%emt 0:02:01]} 32. a5 {[%emt 0:00:54]} Rb8 {[%emt 0:00:29]} 33. Ng4 {[%emt 0:00:21]} Qc7 {[%emt 0:05:12]} 1/2-1/2

[Event "Kuwait Championship Stage-I 2024"]
[Site "Qadsiya"]
[Date "2024.01.30"]
[Round "7.2"]
[White "Alenezi, Hamad"]
[Black "Al Ibrahim, Abdulrahman"]
[Result "0-1"]
[ECO "C45"]
[WhiteElo "1419"]
[BlackElo "1854"]
[Annotator "NA RC"]
[PlyCount "74"]
[EventDate "2024.01.22"]
[EventType "swiss"]
[EventCountry "KUW"]
[SourceTitle "playchess.com"]
[Source "ChessBase"]
[SourceQuality "1"]
[TimeControl "5400+30"]

1. e4 {[%emt 0:01:01]} e5 {[%emt 0:00:06]} 2. Nf3 {[%emt 0:00:07]} Nc6 {[%emt 0:00:03]} 3. d4 {[%emt 0:01:44]} exd4 {[%emt 0:00:07]} 4. Nxd4 {[%emt 0:03:03]} Nf6 {[%emt 0:00:45]} 5. Nxc6 {[%emt 0:00:09]} bxc6 {[%emt 0:00:07]} 6. e5 {[%emt 0:01:01]} Qe7 {[%emt 0:00:59]} 7. Qe2 {[%emt 0:00:02]} Nd5 {[%emt 0:00:18]} 8. g3 {[%emt 0:00:41]} f6 {[%emt 0:01:16]} 9. c4 {[%emt 0:13:41]} Ba6 {[%emt 0:02:17]} 10. Bg2 {[%emt 0:09:52]} Nb6 {[%emt 0:23:10]} 11. b3 {[%emt 0:04:38]} Qxe5 {[%emt 0:01:31]} 12. Qxe5+ {[%emt 0:02:14]} fxe5 {[%emt 0:00:03]} 13. O-O {[%emt 0:02:52]} Bc5 {[%emt 0:04:43]} 14. Bb2 {[%emt 0:04:23]} O-O {[%emt 0:00:39]} 15. Nd2 {[%emt 0:10:48]} Rae8 {[%emt 0:18:33]} 16. Ne4 {[%emt 0:03:58]} Be7 {[%emt 0:01:08]} 17. Rfd1 {[%emt 0:09:28]} d5 {[%emt 0:04:25]} 18. cxd5 {[%emt 0:02:14]} cxd5 {[%emt 0:00:23]} 19. Nc3 {[%emt 0:02:38]} Bc5 {[%emt 0:02:46]} 20. Rd2 {[%emt 0:06:21]} c6 {[%emt 0:00:54]} 21. Rc1 {[%emt 0:01:30]} Bd4 {[%emt 0:04:58]} 22. Nd1 {[%emt 0:01:28]} Bxb2 {[%emt 0:03:58]} 23. Rxb2 {[%emt 0:00:25]} Bb7 {[%emt 0:01:10]} 24. Ne3 {[%emt 0:01:48]} e4 {[%emt 0:02:10]} 25. Rd2 {[%emt 0:03:35]} Nd7 {[%emt 0:00:44]} 26. Rdc2 {[%emt 0:06:58]} Ne5 {[%emt 0:01:00]} 27. Nd1 {[%emt 0:00:42]} Nd3 {[%emt 0:06:41]} 28. Ra1 {[%emt 0:01:04]} c5 {[%emt 0:05:46]} 29. Bf1 {[%emt 0:01:01]} d4 {[%emt 0:00:33]} 30. Bg2 {[%emt 0:04:54]} Ne1 {[%emt 0:05:35]} 31. Rxc5 {[%emt 0:00:46]} Nxg2 {[%emt 0:00:21]} 32. Kxg2 {[%emt 0:00:38]} e3+ {[%emt 0:00:09]} 33. Kg1 {[%emt 0:00:44]} e2 {[%emt 0:00:18]} 34. Ne3 {[%emt 0:00:29]} dxe3 {[%emt 0:00:36]} 35. f4 {[%emt 0:00:24]} Rd8 {[%emt 0:00:30]} 36. Rcc1 {[%emt 0:00:33]} Bf3 {[%emt 0:00:14]} 37. Re1 {[%emt 0:00:29]} Rd1 {[%emt 0:00:10]} 0-1

[Event "Kuwait Championship Stage-I 2024"]
[Site "Qadsiya"]
[Date "2024.01.30"]
[Round "7.3"]
[White "Aldaihani, Turki"]
[Black "Alsaqer, Meshal"]
[Result "0-1"]
[ECO "C00"]
[WhiteElo "1475"]
[BlackElo "1753"]
[Annotator "NA RC"]
[PlyCount "74"]
[EventDate "2024.01.22"]
[EventType "swiss"]
[EventCountry "KUW"]
[SourceTitle "playchess.com"]
[Source "ChessBase"]
[SourceQuality "1"]
[TimeControl "5400+30"]

1. e4 {[%emt 0:24:19]} e6 {[%emt 0:01:15]} 2. d3 {[%emt 0:01:13]} d5 {[%emt 0:00:25]} 3. Nd2 {[%emt 0:00:04]} c5 {[%emt 0:00:24]} 4. Ngf3 {[%emt 0:00:10]} Nc6 {[%emt 0:00:35]} 5. g3 {[%emt 0:00:17]} Nf6 {[%emt 0:00:31]} 6. Bg2 {[%emt 0:00:10]} Be7 {[%emt 0:00:34]} 7. O-O {[%emt 0:00:10]} O-O {[%emt 0:00:49]} 8. Re1 {[%emt 0:00:19]} b5 {[%emt 0:02:51]} 9. e5 {[%emt 0:00:08]} Nd7 {[%emt 0:00:14]} 10. Nf1 {[%emt 0:00:06]} Qc7 {[%emt 0:01:16]} 11. Bf4 {[%emt 0:00:43]} Bb7 {[%emt 0:00:54]} 12. h4 {[%emt 0:00:05]} Rfc8 {[%emt 0:01:06]} 13. N1h2 {[%emt 0:00:29]} Nd4 {[%emt 0:20:06]} 14. h5 {[%emt 0:05:40]} h6 {[%emt 0:03:08]} 15. g4 {[%emt 0:04:19]} Rab8 {[%emt 0:04:56]} 16. Qd2 {[%emt 0:00:43]} Nxf3+ {[%emt 0:00:49]} 17. Nxf3 {[%emt 0:03:54]} d4 {[%emt 0:01:25]} 18. g5 {[%emt 0:04:33]} Bxf3 {[%emt 0:00:33]} 19. Bxf3 {[%emt 0:01:35]} hxg5 {[%emt 0:03:07]} 20. Bxg5 {[%emt 0:00:04]} Qd8 {[%emt 0:01:59]} 21. Bxe7 {[%emt 0:01:38]} Qxe7 {[%emt 0:00:13]} 22. Qf4 {[%emt 0:00:28]} Kh8 {[%emt 0:07:41]} 23. Kg2 {[%emt 0:06:20]} Rg8 {[%emt 0:00:53]} 24. Rh1 {[%emt 0:00:58]} f6 {[%emt 0:06:48]} 25. h6 {[%emt 0:07:54]} g5 {[%emt 0:00:49]} 26. Qg3 {[%emt 0:02:49]} Nxe5 {[%emt 0:00:42]} 27. Rae1 {[%emt 0:02:25]} Ng6 {[%emt 0:01:56]} 28. Rh2 {[%emt 0:02:12]} Nf4+ {[%emt 0:00:33]} 29. Kh1 {[%emt 0:00:23]} c4 {[%emt 0:02:15]} 30. Re4 {[%emt 0:03:10]} cxd3 {[%emt 0:01:37]} 31. h7 {[%emt 0:03:10]} Rgc8 {[%emt 0:01:49]} 32. Bd1 {[%emt 0:01:53]} dxc2 {[%emt 0:01:56]} 33. Bxc2 {[%emt 0:00:03]} Rxc2 {[%emt 0:00:48]} 34. Rxf4 {[%emt 0:00:39]} gxf4 {[%emt 0:01:28]} 35. Qxf4 {[%emt 0:00:35]} Rbc8 {[%emt 0:01:27]} 36. Rg2 {[%emt 0:00:41]} e5 {[%emt 0:04:34]} 37. Qf5 {[%emt 0:02:50]} Rc1+ {[%emt 0:00:31]} 0-1

[Event "Kuwait Championship Stage-I 2024"]
[Site "Qadsiya"]
[Date "2024.01.30"]
[Round "7.4"]
[White "Almohammad, Hamad"]
[Black "Al-Hajiri, Bader"]
[Result "0-1"]
[ECO "A45"]
[WhiteElo "1296"]
[BlackElo "1890"]
[Annotator "NA RC"]
[PlyCount "42"]
[EventDate "2024.01.22"]
[EventType "swiss"]
[EventCountry "KUW"]
[SourceTitle "playchess.com"]
[Source "ChessBase"]
[SourceQuality "1"]
[TimeControl "5400+30"]

1. d4 {[%emt 0:08:04]} Nf6 {[%emt 0:00:27]} 2. Bf4 {[%emt 0:00:07]} g6 {[%emt 0:01:28]} 3. e3 {[%emt 0:00:23]} Bg7 {[%emt 0:00:14]} 4. Bd3 {[%emt 0:00:12]} d6 {[%emt 0:00:18]} 5. Nc3 {[%emt 0:03:22]} O-O {[%emt 0:01:32]} 6. h4 {[%emt 0:01:07]} a6 {[%emt 0:01:16]} 7. h5 {[%emt 0:00:45]} Nxh5 {[%emt 0:03:32]} 8. Rxh5 {[%emt 0:00:15]} gxh5 {[%emt 0:00:07]} 9. Qxh5 {[%emt 0:00:12]} f5 {[%emt 0:00:03]} 10. Nf3 {[%emt 0:00:35]} Qe8 {[%emt 0:00:41]} 11. Qh2 {[%emt 0:01:45]} Nd7 {[%emt 0:01:55]} 12. g4 {[%emt 0:01:56]} e5 {[%emt 0:04:08]} 13. Ng5 {[%emt 0:11:54]} h6 {[%emt 0:03:49]} 14. Bc4+ {[%emt 0:00:56]} Kh8 {[%emt 0:00:09]} 15. dxe5 {[%emt 0:15:05]} dxe5 {[%emt 0:00:24]} 16. Ne6 {[%emt 0:03:28]} exf4 {[%emt 0:08:50]} 17. Nxc7 {[%emt 0:02:09]} Ne5 {[%emt 0:02:01]} 18. Bd5 {[%emt 0:09:32]} Qd8 {[%emt 0:05:03]} 19. O-O-O {[%emt 0:14:50]} Qxc7 {[%emt 0:00:49]} 20. g5 {[%emt 0:00:10]} fxe3 {[%emt 0:01:15]} 21. gxh6 {[%emt 0:02:55]} Nd3+ {[%emt 0:00:29]} 0-1

[Event "Kuwait Championship Stage-I 2024"]
[Site "Qadsiya"]
[Date "2024.01.30"]
[Round "7.5"]
[White "Hashem, Khaled"]
[Black "Alrefae, Ahmad"]
[Result "1-0"]
[ECO "A92"]
[WhiteElo "1868"]
[BlackElo "1338"]
[Annotator "NA RC"]
[PlyCount "66"]
[EventDate "2024.01.22"]
[EventType "swiss"]
[EventCountry "KUW"]
[SourceTitle "playchess.com"]
[Source "ChessBase"]
[SourceQuality "1"]
[TimeControl "5400+30"]

1. Nf3 {[%emt 0:00:03]} f5 {[%emt 0:00:08]} 2. g3 {[%emt 0:00:06]} Nf6 {[%emt 0:00:09]} 3. Bg2 {[%emt 0:00:02]} d6 {[%emt 0:00:12]} 4. d4 {[%emt 0:00:12]} e6 {[%emt 0:00:12]} 5. c4 {[%emt 0:02:28]} Be7 {[%emt 0:00:07]} 6. Nc3 {[%emt 0:00:07]} O-O {[%emt 0:00:06]} 7. Qc2 {[%emt 0:00:59]} a5 {[%emt 0:05:36]} 8. e4 {[%emt 0:02:55]} fxe4 {[%emt 0:00:06]} 9. Nxe4 {[%emt 0:00:02]} Nc6 {[%emt 0:00:39]} 10. a3 {[%emt 0:03:17]} e5 {[%emt 0:02:47]} 11. dxe5 {[%emt 0:04:21]} dxe5 {[%emt 0:00:35]} 12. Bg5 {[%emt 0:07:15]} Nxe4 {[%emt 0:06:05]} 13. Bxe7 {[%emt 0:00:22]} Qxe7 {[%emt 0:00:05]} 14. Qxe4 {[%emt 0:00:09]} Bf5 {[%emt 0:00:38]} 15. Qe3 {[%emt 0:03:19]} Rad8 {[%emt 0:10:42]} 16. O-O {[%emt 0:01:09]} Rd3 {[%emt 0:08:53]} 17. Qg5 {[%emt 0:28:17]} Qd6 {[%emt 0:14:57]} 18. Nh4 {[%emt 0:07:53]} Be6 {[%emt 0:12:46]} 19. Be4 {[%emt 0:10:53]} Rd4 {[%emt 0:09:47]} 20. Rfe1 {[%emt 0:10:14]} Rd2 {[%emt 0:08:05]} 21. Nf3 {[%emt 0:02:56]} Rxb2 {[%emt 0:04:05]} 22. Qc1 {[%emt 0:00:28]} Rb3 {[%emt 0:02:13]} 23. Ng5 {[%emt 0:00:49]} Bf5 {[%emt 0:05:55]} 24. Bd5+ {[%emt 0:00:01]} Kh8 {[%emt 0:00:15]} 25. Nf7+ {[%emt 0:00:50]} Rxf7 {[%emt 0:00:05]} 26. Bxf7 {[%emt 0:00:02]} Qf6 {[%emt 0:00:57]} 27. Bd5 {[%emt 0:01:06]} Nd4 {[%emt 0:00:39]} 28. Ra2 {[%emt 0:02:03]} Nf3+ {[%emt 0:01:54]} 29. Bxf3 {[%emt 0:00:20]} Rxf3 {[%emt 0:00:04]} 30. Rae2 {[%emt 0:01:37]} e4 {[%emt 0:00:28]} 31. Re3 {[%emt 0:00:58]} h6 {[%emt 0:02:40]} 32. Rxf3 {[%emt 0:00:46]} exf3 {[%emt 0:00:06]} 33. Qf4 {[%emt 0:00:06]} Qc3 {[%emt 0:00:58]} 1-0

[Event "Kuwait Championship Stage-I 2024"]
[Site "Qadsiya"]
[Date "2024.01.30"]
[Round "7.6"]
[White "Al Subaie, Nasser"]
[Black "Alasfour, Zaid"]
[Result "1/2-1/2"]
[ECO "D08"]
[WhiteElo "1457"]
[BlackElo "1188"]
[Annotator "NA RC"]
[PlyCount "105"]
[EventDate "2024.01.22"]
[EventType "swiss"]
[EventCountry "KUW"]
[SourceTitle "playchess.com"]
[Source "ChessBase"]
[SourceQuality "1"]
[TimeControl "5400+30"]

1. d4 {[%emt 0:00:43]} d5 {[%emt 0:00:09]} 2. c4 {[%emt 0:00:04]} e5 {[%emt 0:00:04]} 3. dxe5 {[%emt 0:00:05]} d4 {[%emt 0:00:07]} 4. a3 {[%emt 0:00:37]} Nc6 {[%emt 0:00:18]} 5. Nf3 {[%emt 0:00:04]} Nge7 {[%emt 0:00:37]} 6. b4 {[%emt 0:00:43]} Ng6 {[%emt 0:02:30]} 7. Bb2 {[%emt 0:00:08]} Ngxe5 {[%emt 0:03:03]} 8. Nxe5 {[%emt 0:00:23]} Nxe5 {[%emt 0:00:27]} 9. e3 {[%emt 0:00:03]} Be6 {[%emt 0:07:10]} 10. c5 {[%emt 0:10:51]} Qh4 {[%emt 0:11:54]} 11. Qxd4 {[%emt 0:16:37]} Qxd4 {[%emt 0:01:50]} 12. Bxd4 {[%emt 0:01:16]} Nc6 {[%emt 0:03:07]} 13. Bc3 {[%emt 0:04:21]} a5 {[%emt 0:02:45]} 14. b5 {[%emt 0:08:23]} Nd8 {[%emt 0:02:34]} 15. Bd4 {[%emt 0:15:26]} Bf5 {[%emt 0:01:20]} 16. Bc4 {[%emt 0:01:10]} Ne6 {[%emt 0:02:15]} 17. Bxe6 {[%emt 0:01:49]} Bxe6 {[%emt 0:00:22]} 18. Nd2 {[%emt 0:01:23]} f6 {[%emt 0:05:00]} 19. O-O {[%emt 0:02:23]} O-O-O {[%emt 0:03:44]} 20. Rfc1 {[%emt 0:00:49]} Be7 {[%emt 0:04:00]} 21. a4 {[%emt 0:06:36]} Rhe8 {[%emt 0:04:21]} 22. Nc4 {[%emt 0:00:51]} Bxc4 {[%emt 0:01:37]} 23. Rxc4 {[%emt 0:00:07]} Bf8 {[%emt 0:05:55]} 24. Rac1 {[%emt 0:05:35]} Rd5 {[%emt 0:03:33]} 25. g3 {[%emt 0:01:14]} Red8 {[%emt 0:04:58]} 26. Kg2 {[%emt 0:01:16]} f5 {[%emt 0:02:21]} 27. Bc3 {[%emt 0:02:35]} Rxc5 {[%emt 0:10:28]} 28. Bxa5 {[%emt 0:02:16]} Rxc4 {[%emt 0:00:56]} 29. Rxc4 {[%emt 0:00:05]} Bd6 {[%emt 0:00:36]} 30. Bc3 {[%emt 0:03:47]} g6 {[%emt 0:02:38]} 31. h4 {[%emt 0:03:04]} Kd7 {[%emt 0:02:26]} 32. h5 {[%emt 0:00:09]} Be7 {[%emt 0:02:15]} 33. hxg6 {[%emt 0:00:31]} hxg6 {[%emt 0:00:06]} 34. e4 {[%emt 0:00:55]} b6 {[%emt 0:02:23]} 35. exf5 {[%emt 0:00:23]} gxf5 {[%emt 0:00:05]} 36. a5 {[%emt 0:01:42]} Bc5 {[%emt 0:01:01]} 37. axb6 {[%emt 0:02:04]} cxb6 {[%emt 0:00:07]} 38. g4 {[%emt 0:05:26]} Ke6 {[%emt 0:00:38]} 39. gxf5+ {[%emt 0:02:38]} Kxf5 {[%emt 0:00:22]} 40. Kf1 {[%emt 0:01:24]} Rd1+ {[%emt 0:00:30]} 41. Ke2 {[%emt 0:00:25]} Rb1 {[%emt 0:00:20]} 42. Bd4 {[%emt 0:00:34]} Bxd4 {[%emt 0:01:08]} 43. Rxd4 {[%emt 0:00:11]} Rxb5 {[%emt 0:00:11]} 44. Ke3 {[%emt 0:00:41]} Rb3+ {[%emt 0:01:55]} 45. Kd2 {[%emt 0:00:29]} Ke5 {[%emt 0:00:18]} 46. Kc2 {[%emt 0:00:41]} Rf3 {[%emt 0:00:22]} 47. Rd2 {[%emt 0:00:18]} Ke6 {[%emt 0:01:04]} 48. Kb2 {[%emt 0:00:10]} b5 {[%emt 0:00:40]} 49. Ka2 {[%emt 0:00:16]} Ke5 {[%emt 0:01:24]} 50. Kb2 {[%emt 0:00:16]} Ke4 {[%emt 0:00:17]} 51. Ka2 {[%emt 0:02:03]} b4 52. Rd3 Rxd3 53. f4 {[%emt 0:01:00]} 1/2-1/2